Cogmind - Beta 11.1 --- EXPLORER MODE // 2022.07.29 @ 11:35:23 Player: taylor Result: Self-destructed Performance ------------- Evolutions (1) 500 Regions Visited (3) 600 Robots Destroyed (9) 45 Value Destroyed (181) 181 Prototype IDs (1) 20 Alien Tech Used (0) 0 Bonus (0) 0 TOTAL SCORE: 1346 Bonus ------- None Cogmind --------- Core Integrity 378/400 Matter 280/300 Energy 415/415 System Corruption 0% Temperature Cool (0) Movement Walking (120) Location -9/Materials Parts ------- > --- POWER (2) -------- Ion Engine Improved Ion Engine > --- PROPULSION (2) --- Aluminum Leg Aluminum Leg > --- UTILITY (4) ------ Improved Heat Sink Experimental Sensor Array Targeting Computer Power Shielding > --- WEAPON (2) ------- (None) > --- INVENTORY (5) ---- Improved Datajack Peak State ------------ > --- POWER ------------ Ion Engine Improved Ion Engine > --- PROPULSION ------- Aluminum Leg Aluminum Leg > --- UTILITY ---------- Improved Heat Sink Experimental Sensor Array Power Shielding > --- WEAPON ----------- Small Laser Small Laser > --- INVENTORY -------- Targeting Computer Improved Datajack [Rating: 20] Favorites ----------- Power Ion Engine Engine Ion Engine Propulsion Aluminum Leg Leg Aluminum Leg Utility Power Shielding Device Experimental Sensor Array Processor Targeting Computer Protection Power Shielding Weapon Small Laser Energy Gun Small Laser Build | -11 -10 -10 -9 ------- Run | Scr Mat Min Mat Slots Evolved 3 | . 1 . 2 Power 1 | . . . 1 Propulsion . | . . . . Utility 2 | . 1 . 1 Weapon . | . . . . Parts Attached 11 | 5 1 2 3 Power 2 | 1 . . 1 Engine 2 | 1 . . 1 Core . | . . . . Reactor . | . . . . Propulsion 3 | 2 1 . . Treads . | . . . . Leg 3 | 2 1 . . Wheel . | . . . . Hover . | . . . . Flight . | . . . . Utility 4 | 1 . 2 1 Device 2 | . . 2 . Storage . | . . . . Processor 1 | . . . 1 Hackware . | . . . . Protection 1 | 1 . . . Artifact . | . . . . Weapon 2 | 1 . . 1 Energy Gun 2 | 1 . . 1 Energy Cannon . | . . . . Ballistic Gun . | . . . . Ballistic Cannon . | . . . . Launcher . | . . . . Special Weapon . | . . . . Impact Weapon . | . . . . Slashing Weapon . | . . . . Piercing Weapon . | . . . . Special Melee Weapon . | . . . . Unidentified Prototypes 1 | . . 1 . Parts Lost 2 | . . . 2 Power . | . . . . Propulsion . | . . . . Utility . | . . . . Weapon 2 | . . . 2 Highest Loss Streak 2 | . . . 2 To Critical Strikes . | . . . . Average Slot Usage (%) 73 | . 62 77 82 Engine 13 | . 12 12 19 Leg 24 | . 25 25 20 Device 11 | . . 15 20 Protection 11 | . 12 12 10 Energy Gun 12 | . 12 12 12 Naked Turns . | . . . . Heaviest Build 17 | 7 7 9 17 Greatest Support 20 | 20 20 20 20 Greatest Overweight (x) . | . . . . Average Overweight (x) . | . . . . Largest Inventory Capacity 5 | 5 5 5 5 Average Capacity 5 | 5 5 5 5 Most Carried 3 | 3 2 3 3 Average Carried 1 | . 1 1 1 Final Capacity 5 | 5 5 5 5 Final Carried 2 | 1 1 2 1 Class Distribution -------------------- 100% | Hacker-Mutant Dominant Class ---------------- Hacker-Mutant | -10/Materials Hacker-Mutant | -10/Mines Hacker-Mutant | -9/Materials Resources | -11 -10 -10 -9 ----------- Run | Scr Mat Min Mat Matter Collected 280 | 240 . 40 . Remotely . | . . . . Salvage Created 262 | . 121 43 98 Parts 9 | . 3 2 4 Haulers Intercepted . | . . . . Recyclers Shooed . | . . . . Parts Field Recycled . | . . . . Retrieved Matter . | . . . . Parts Self-Destructed . | . . . . Prevented . | . . . . Kills | -11 -10 -10 -9 ------- Run | Scr Mat Min Mat Combat Hostiles Destroyed 10 | . 2 4 4 Guns 10 | . 2 4 4 Classes Destroyed 4 | . 2 2 . Watcher 1 | . 1 . . Swarmer 5 | . . 2 3 Grunt 3 | . 2 . 1 Assembled 2 | . . 2 . Best Kill Streak 3 | . 1 2 3 Combat Bots Only 3 | . 1 2 3 Max Kills in Single Turn 1 | . 1 1 1 Gunslinging . | . . . . Exploded . | . . . . Melee . | . . . . Uniques/NPCs Destroyed . | . . . . Combat | -11 -10 -10 -9 -------- Run | Scr Mat Min Mat Damage Taken 405 | . 167 46 192 Core 74 | . 29 23 22 Absorbed by Shields . | . . . . Redirected to Shielding 13 | . 4 1 8 Core Remaining (%) 89 | 100 . 79 . Volleys Fired 47 | . 20 13 14 Largest 2 | . 1 1 2 Hottest 80 | . 40 40 80 Shots Fired 54 | . 20 13 21 Gun 54 | . 20 13 21 Cannon . | . . . . Launcher . | . . . . Special . | . . . . Kinetic . | . . . . Thermal 54 | . 20 13 21 Explosive . | . . . . Electromagnetic . | . . . . Robot Hit Streak 17 | . 11 5 17 Robot Miss Streak 1 | . 1 1 1 Penetration Max . | . . . . Secondary Targets 1 | . . . 1 Max Gunslinging Chain 1 | . . . 1 Shots Hit Robots 45 | . 17 10 18 Core Hits 19 | . 7 5 7 Critical Kills . | . . . . Critical Parts Destroyed . | . . . . Critical Strikes . | . . . . Melee Attacks . | . . . . Impact . | . . . . Slashing . | . . . . Piercing . | . . . . Sneak Attacks . | . . . . Combat Hostiles . | . . . . Follow-up Attacks . | . . . . Damage Inflicted 490 | . 184 108 198 Guns 490 | . 184 108 198 Cannons . | . . . . Explosions . | . . . . Melee . | . . . . Ramming . | . . . . Kinetic . | . . . . Thermal 490 | . 184 108 198 Explosive . | . . . . Electromagnetic . | . . . . Impact . | . . . . Slashing . | . . . . Piercing . | . . . . Highest Corruption . | . . . . Average Corruption . | . . . . Corruption Purged . | . . . . Corruption Blocked . | . . . . Overload Shots . | . . . . Overflow Damage . | . . . . Projectiles . | . . . . Explosions . | . . . . Melee . | . . . . Knockbacks . | . . . . Impact . | . . . . Kinetic . | . . . . Secondary . | . . . . Self-Inflicted Damage . | . . . . Shots . | . . . . Rammed . | . . . . Targets Rammed . | . . . . Kicked . | . . . . Crushed . | . . . . Highest Temperature 81 | . 81 . 9 Average Temperature 33 | . 38 . 5 Received Heat Transfer 285 | . 132 . 153 Siege Activations . | . . . . Robots Corrupted . | . . . . Combat Hostiles . | . . . . Parts Fried . | . . . . Impact Corruptions . | . . . . Robots Melted . | . . . . Combat Hostiles . | . . . . Parts Melted 1 | . 1 . . Heat Transferred 1125 | . 425 250 450 Parts Sabotaged . | . . . . Parts Stolen . | . . . . Parts Stripped . | . . . . Power Chain Reactions . | . . . . Missiles Intercepted . | . . . . Alert | -11 -10 -10 -9 ------- Run | Scr Mat Min Mat Peak Influence 133 | . 87 50 133 Initial 23 | . . 23 13 Average 27 | . 33 16 58 Maximum Alert Level . | . . . . Low Security (%) 100 | 100 100 100 100 Level 1 . | . . . . Level 2 . | . . . . Level 3 . | . . . . Level 4 . | . . . . Level 5 . | . . . . High Security . | . . . . Max Security . | . . . . Squads Dispatched 3 | . . . 3 Investigation . | . . . . Extermination . | . . . . Reinforcement 3 | . . . 3 Assault . | . . . . Garrison . | . . . . Intercept . | . . . . Searches Triggered . | . . . . Construction Impeded . | . . . . Haulers Reinforced . | . . . . Active Scanning Responses . | . . . . Cargo Convoy Interrupts . | . . . . Stealth | -11 -10 -10 -9 --------- Run | Scr Mat Min Mat Distress Signals 4 | . 1 . 3 Communications Jammed . | . . . . Distress Signals . | . . . . Times Spotted 22 | . 6 5 11 Peak Tracking Total 8 | . 3 2 8 Tactical Retreats 2 | . 1 1 . Traps | -11 -10 -10 -9 ------- Run | Scr Mat Min Mat Traps Triggered . | . . . . Indirectly . | . . . . Trap Hack Attempts . | . . . . Triggered . | . . . . Disarmed . | . . . . Reprogrammed . | . . . . Reused . | . . . . Traps Extracted . | . . . . Installed . | . . . . Triggered . | . . . . Machines | -11 -10 -10 -9 ---------- Run | Scr Mat Min Mat Machines Disabled . | . . . . Max in Single Turn . | . . . . Machines Sabotaged . | . . . . Garrisons Compromised . | . . . . Overloaded Fab Kills . | . . . . Hacking | -11 -10 -10 -9 --------- Run | Scr Mat Min Mat Machines Accessed 3 | . 3 . . Terminals 3 | . 3 . . Fabricators . | . . . . Repair Stations . | . . . . Recycling Units . | . . . . Scanalyzers . | . . . . Garrison Access . | . . . . Total Hacks 6 | . 6 . . Successful 5 | . 5 . . Failed 1 | . 1 . . Catastrophic . | . . . . Database Lockouts . | . . . . Manual 5 | . 5 . . Terminals 6 | . 6 . . Fabricators . | . . . . Repair Stations . | . . . . Recycling Units . | . . . . Scanalyzers . | . . . . Garrison Access . | . . . . Terminal Hacks 2 | . 2 . . Branch Access Points 1 | . 1 . . Zone Layout 1 | . 1 . . Fabricator Hacks . | . . . . Repair Station Hacks . | . . . . Recycling Unit Hacks . | . . . . Scanalyzer . | . . . . Garrison Access Hacks . | . . . . Unauthorized Hacks 3 | . 3 . . Terminals 3 | . 3 . . Botnet 3 | . 3 . . Fabricators . | . . . . Repair Stations . | . . . . Recycling Units . | . . . . Scanalyzers . | . . . . Garrison Access . | . . . . Data Cores Recovered . | . . . . Used . | . . . . Hacking Detections 3 | . 3 . . Full Trace Events . | . . . . Feedback Events . | . . . . Feedback Blocked . | . . . . Robot Schematics Acquired . | . . . . Robots Built . | . . . . Authchips . | . . . . Time . | . . . . Total Robot Build Rating . | . . . . Part Schematics Acquired . | . . . . Parts Built . | . . . . Authchips . | . . . . Time . | . . . . Total Part Build Rating . | . . . . Parts Repaired . | . . . . Time . | . . . . Parts Recycled . | . . . . Recycled Matter . | . . . . Retrieved Matter . | . . . . Retrieved Components . | . . . . Parts Scanalyzed . | . . . . Part Schematics Acquired . | . . . . Parts Damaged . | . . . . Bothacking | -11 -10 -10 -9 ------------ Run | Scr Mat Min Mat Used RIF Installer . | . . . . Robots Hacked . | . . . . Non-combat . | . . . . Combat . | . . . . Robot Hacks Applied . | . . . . Relay Couplers Released . | . . . . Fabnet Peak Effective % . | . . . . Robots Rewired . | . . . . Allies Hacked . | . . . . Hacks Repelled . | . . . . Allies | -11 -10 -10 -9 -------- Run | Scr Mat Min Mat Total Allies . | . . . . Largest Group . | . . . . Highest-Rated Group . | . . . . Highest-Rated Ally . | . . . . Total Orders . | . . . . Ally Attacks . | . . . . Total Damage . | . . . . Kills . | . . . . Allies Corrupted . | . . . . Allies Melted . | . . . . Intel | -11 -10 -10 -9 ------- Run | Scr Mat Min Mat Robot Analysis Total . | . . . . Derelict Logs Recovered . | . . . . Drone Launches . | . . . . Drone Recoveries . | . . . . Exploration | -11 -10 -10 -9 ------------- Run | Scr Mat Min Mat Turns Passed 1159 | 42 364 583 170 Spaces Moved 713 | 35 197 379 102 Core 14 | 14 . . . Treads . | . . . . Legs 699 | 21 197 379 102 Wheels . | . . . . Hover . | . . . . Flight . | . . . . Fastest Speed 50 | 50 120 120 120 Average Speed 118 | 92 120 120 120 Slowest Speed 120 | 120 120 120 120 Overloaded Moves . | . . . . Propulsion Burnouts . | . . . . Robots Hopped . | . . . . Cave-ins Triggered . | . . . . Exploration Rate (%) 33 | 4 28 85 16 Regions Visited 3 Branch Regions 1 Pre-discovered Areas . | . . . . Known Exits Taken 3 | 1 1 1 . Unknown Exits Taken . | . . . . Scrap Searched . | . . . . Spaces Dug . | . . . . Terrain Destroyed . | . . . . Melee . | . . . . Projectile . | . . . . AOE . | . . . . Terrain Rammed . | . . . . Walls Destroyed . | . . . . Machines Disabled . | . . . . Actions | -11 -10 -10 -9 --------- Run | Scr Mat Min Mat Total 971 | 45 304 494 128 Wait 190 | . 85 98 7 Move 710 | 34 196 378 102 Hop . | . . . . Pick Up 12 | 6 1 3 2 Fast Attach . | . . . . Attach 10 | 5 . 2 3 Detach . | . . . . Swap 1 | . 1 . . Drop 1 | . 1 . . Fire 47 | . 20 13 14 Melee . | . . . . Ram . | . . . . Kick . | . . . . Crush . | . . . . Escape Stasis . | . . . . Rewire . | . . . . Trap . | . . . . Miscellaneous . | . . . . Route ------- -11/Scrapyard -10/Materials -10/Mines -9/Materials History --------- Turn | Location | Event 7 | -11/Scrapyard | Identified exit to Materials 7 | -11/Scrapyard | Discovered exit to Materials (range 15) 43 | -11/Scrapyard | Entered Materials 43 | -10/Materials | Evolved 1 slot: Utility x1 115 | -10/Materials | Identified exit to Mines 306 | -10/Materials | Build established: Hacker-Mutant 407 | -10/Materials | Entered Mines 458 | -10/Mines | Assembled infested the area 581 | -10/Mines | Found a damaged Exp. Sensor Array with a note attached 583 | -10/Mines | Found Prototype Device 584 | -10/Mines | Identified Exp. Sensor Array 983 | -10/Mines | Identified exit to Materials 983 | -10/Mines | Discovered exit to Materials (range 5) 990 | -10/Mines | Entered Materials 990 | -9/Materials | Evolved 2 slots: Power x1, Utility x1 1160 | -9/Materials | Self-destructed Last Messages --------------- ALERT: Hostiles spotted, dispatching reinforcements to Terminal M011. O-16 Technician: "IFF HANDSHAKE FAILED. SECURING TERMINAL." O-16 Technician uses terminal to summon reinforcements. ALERT: Hostiles spotted, dispatching reinforcements to Terminal M010. O-16 Technician locks terminal. K-01 Serf collects debris. ALERT: Hostiles spotted, dispatching reinforcements to Terminal M006. Acquired Imp. Datajack. Critical hit (Burn: +37). W-16 Scout distress signal alerts nearby ally. S-10 Pest destroyed. K-01 Serf collects debris. S-10 Pest destroyed. Switching to secondary target: S-10 Pest. K-01 Serf collects debris. S-10 Pest destroyed. K-01 Serf collects debris. Sml. Laser destroyed. G-34 Mercenary destroyed. Sml. Laser destroyed. Map ----- +----------------------------------------------------+ | ???????????????????????????????????????????# | | ???????????????????????????????????????????# | | ???????????????????????????????????????????# | | ???????????????????????????????????????????##+#### | | ???????????????????????????????????????????# | | ????????????????????????????????# ######## | | ????????????????????????????????# | | ????????????????????????????????# ### | | ????????????????????????????????# #?? | | ????????????????????????????????# ?######## #?? | | ????????????????????????????????# ?????????# #?? | | ???????????????????????????????????????????# #?? | | ???????????????????????????????????????????# ### | | ???????????????????????????????????????????# ! | | ???????????????????????????????????????????# ! | | ???????????????????????????????????????????# ! | | ???????????????????????????????????????????# ! | | ???????????????????????????????????????????# | | ???????????????????????????????????????????# / | | ???????????????????????????????????????????#? ### | | ???????????????????????????????????????????# #?? | | ????????????????????##########?????????????# #?? | | ????????????????????# #?????????????#? #?? | | ????????????????????# """#?????????????# #?? | | ????????????????????# """############### #?? | | ????????????????????# @"""# [% #?? | | ????????????????????# ggYY %[ #?? | | ????????????????????# ! """# ^ =%[ #?? | | ????????????????????# """# ^ ######?? | | ????????????????????# """# """ ?#??????? | | ????????????????????# # """ #??????? | | ????????????????????########## """ T#?????? | | ?????????????????????????????# == ##?????? | | ?????????????????????????????# = #??????? | | ?????????????????????????????# """ #??????? | | ?????????????????????????????# ^""" #??????? | | ?????????????????????????????# """ #??????? | | ????????????????????????????? ? #??????? | | ????????????????????????????? ? #??????? | | ????????????????????????????? ? #??????? | | ?????????????????????????????# ? ###+###???????? | | ?????????????????????????????? ????????????????? | | ?????????????????????????????????????????????????? | | ?????????????????????????????????????????????????? | | ?????????????????????????????????????????????????? | | ?????????????????????????????????????????????????? | | ?????????????????????????????????????????????????? | | ?????????????????????????????????????????????????? | | ?????????????????????????????????????????????????? | | ?????????????????????????????????????????????????? | +----------------------------------------------------+ Best States ------------- Heat Dissipation 42 Energy Generation 17 Energy Capacity 415 Matter Stores 300 Matter Capacity 300 Sight Range 16 Robot Scan Range 20 Terrain Scan Density 10 Resistance: KI 35 Resistance: TH 35 Resistance: EX 35 Resistance: EM 35 Resistance: I 35 Resistance: S 35 Resistance: P 35 Power Shielding 33 Evasion (%) 55 Targeting Accuracy 5 Offensive Hacking 20 Item Schematics ----------------- None Robot Schematics ------------------ None Fabricated ------------ Nothing Alien Tech Used ----------------- None Achievements -------------- None Challenges ------------ None Game ------ Seed DirtyBeamFlakker Manual? 0 Play Time 00:12:31 Cumulative 41.4 hours Start 2022.07.29 @ 11:23:45 End 2022.07.29 @ 11:35:23 Sessions 1 Manual Loads 0 Difficulty Explorer Special Mode None Game No. 47 Rogue 21 Adventurer 0 Explorer 26 Win Type - Total 0 Types 0/0/0/0/0/0/0/0/0 Lore% 27 Gallery% 33 Achievement% 36 Wizard Run 0 Options --------- ASCII 0 Keyboard 0 Movement Mouse Keybinds 0 Fullscreen 1 Font 18/SmallcapsGlow Map View 76x50 Tactical HUD 0 Map Filters NONE Filters NONE Steam 1 RUN: 8925cbd5-c616-44ca-b6ed-992be9de5165